bitfinex-derivatives/quotes_SOLF0:USTF0_20251002
["timestamp","ask_amount","ask_price","bid_price","bid_amount"]
[1759424946381,112.8894,227.73,227.72,8.285e-05]
[1759424946679,115.94533977,227.73,227.72,8.285e-05]
[1759424947579,3.9501,227.69,227.68,8.285e-05]
[1759424947774,112.8901,227.69,227.68,8.285e-05]
[1759424947979,115.94603977,227.69,227.68,8.285e-05]
[1759424949378,108.92,227.69,227.68,7.79008285]
[1759424949976,108.94,227.72,227.68,8.285e-05]
[1759424950177,108.94,227.72,227.69,1.83553674]
[1759424950380,0.03022066,227.75,227.7,7.79]
[1759424950579,108.94,227.74,227.73,7.79]
[1759424952783,108.94,227.74,227.68,7.79008285]
[1759424953876,0.03022066,227.75,227.7,7.79]
[1759424954279,0.03022066,227.75,227.7,8.23]
[1759424954485,79.19899632,227.91,227.74,7.79]
[1759424954787,3.07418027,227.88,227.74,7.79]
[1759424954985,3.9477,227.83,227.74,7.79]
[1759424955283,109.02,227.83,227.74,7.79]
[1759424955479,3.07418027,227.82,227.74,7.79]
[1759424955683,3.948,227.82,227.74,11.7392]
[1759424955882,319.52,227.89,227.75,7.79]
[1759424956079,319.52,227.89,227.77,7.79]
[1759424956080,112.09263416,227.88,227.77,7.79]
[1759424956283,3.07263416,227.87,227.77,7.79]
[1759424956586,3.9475,227.85,227.77,7.79]
[1759424956887,109.02,227.84,227.77,7.79]
[1759424957301,3.9477,227.83,227.79,0.0283148]
[1759424957501,7.01942774,227.83,227.79,0.0283148]
[1759424957693,3.9481,227.81,227.79,0.0283148]
[1759424960504,3.07165035,227.83,227.79,0.0283148]
[1759424961704,3.07165035,227.82,227.79,0.0283148]
[1759424962005,3.07165035,227.81,227.79,0.0283148]
[1759424962205,108.92,227.8,227.79,0.0283148]
[1759424962405,111.97165035,227.8,227.79,0.0283148]
[1759424962606,115.91985035,227.8,227.79,0.0283148]
[1759424962803,3.07165035,227.8,227.79,0.0283148]
[1759424963005,108.88,227.8,227.79,0.0283148]
[1759424964605,3.9479,227.83,227.79,0.0283148]
[1759424964800,3.07529873,227.86,227.79,0.0283148]
[1759424965004,111.93529873,227.85,227.79,0.0283148]
[1759424965207,3.07529873,227.84,227.8,7.53]
[1759424965408,3.07529873,227.84,227.79,0.0283148]
[1759424965409,319.52,227.89,227.79,0.0283148]
[1759424965707,3.07542651,227.88,227.79,0.0283148]
[1759424966011,111.91542651,227.87,227.79,0.0283148]
[1759424966203,3.07542651,227.86,227.79,0.0283148]
[1759424966511,3.07542651,227.85,227.79,0.0283148]
[1759424966906,3.07542651,227.84,227.79,0.0283148]
[1759424967108,3.07542651,227.86,227.79,0.0283148]
[1759424967307,3.07542651,227.85,227.79,0.0283148]
[1759424967507,3.07542651,227.84,227.79,0.0283148]
[1759424967707,3.9476,227.84,227.79,7.5583148]
[1759424968105,7.02302651,227.84,227.79,7.5583148]
[1759424968409,3.9476,227.84,227.79,7.5583148]
[1759424968799,7.02302651,227.84,227.79,7.5583148]
[1759424969001,3.9476,227.84,227.79,7.5583148]
[1759424969409,7.02302651,227.84,227.8,7.53]
[1759424969704,7.02302651,227.84,227.79,0.0283148]
[1759424969705,3.9476,227.84,227.79,0.0283148]
[1759424969909,3.9479,227.82,227.79,0.0283148]
[1759424970105,112.7679,227.82,227.79,0.0283148]
[1759424973212,3.9482,227.8,227.79,0.0283148]
[1759424974004,4.90807888,227.8,227.68,1.83534708]
[1759424974309,1.83526423,227.77,227.68,1.83534708]
[1759424974509,3.9493,227.75,227.68,1.83534708]
[1759424974709,0.03352241,227.82,227.71,1.83526423]
[1759424974910,111.87238747,227.81,227.74,1.83526423]
[1759424975108,3.07238747,227.8,227.74,1.83526423]
[1759424976009,3.1044902,227.8,227.74,1.83526423]
[1759424977218,3.1044902,227.8,227.74,8.93526423]
[1759424977417,3.1044902,227.8,227.74,1.83526423]
[1759424980714,0.03210273,227.8,227.74,1.83526423]
[1759424983320,3.10249374,227.8,227.73,7.1]
[1759424983523,3.10249374,227.8,227.74,1.83526423]
[1759424983524,0.03210273,227.8,227.74,1.83526423]
[1759424983720,0.03210273,227.8,227.79,7.1]
[1759424984018,0.03210273,227.8,227.76,7.1]
[1759424984518,0.03210273,227.8,227.75,1.83526423]
[1759424984823,0.03210273,227.8,227.76,7.1]
[1759424985620,0.03210273,227.8,227.75,1.83526423]
[1759424985817,3.98050273,227.8,227.75,7.1]
[1759424986025,0.03210273,227.8,227.71,1.83526423]
[1759424986218,3.09055886,227.8,227.71,1.83526423]
[1759424986526,3.9487,227.78,227.71,12.88496423]
[1759424988224,3.9487,227.78,227.71,11.0497]
[1759424988620,3.9489,227.77,227.71,7.1]
[1759424989825,3.9491,227.76,227.71,7.1]
[1759424990916,108.8,227.76,227.67,7.1]
[1759424991117,3.05718332,227.75,227.67,7.1]
[1759424992324,0.02991398,227.73,227.67,7.1]
[1759424993824,0.02991398,227.73,227.59,7.1]
[1759424994026,3.05718332,227.72,227.59,7.1]
[1759424994229,3.9502,227.69,227.59,7.1]
[1759424994827,7.00738332,227.69,227.59,7.1]
[1759424995131,0.03377021,227.66,227.59,7.1]
[1759424995526,0.03377021,227.66,227.59,11.0518]
[1759424995928,13.26134883,227.66,227.59,11.0518]
[1759424997332,17.21204883,227.66,227.59,11.0518]
[1759424997529,17.21204883,227.66,227.59,7.1]
[1759424998129,3.9511,227.64,227.56,11.0523]
[1759424998730,13.26134883,227.66,227.56,11.0523]
[1759424999528,17.21224883,227.66,227.56,7.1]
[1759425000123,13.26134883,227.66,227.56,7.1]
[1759425000327,3.05160782,227.65,227.56,7.1]
[1759425000634,3.9512,227.63,227.56,7.1]
[1759425000828,3.05160782,227.65,227.56,7.1]
[1759425001733,16.13023029,227.66,227.56,7.1]
[1759425003232,3.9514,227.63,227.56,7.1]
[1759425004129,3.9516,227.62,227.56,7.1]
[1759425005432,0.03141166,227.61,227.54,3.9526]
[1759425005627,0.03141166,227.61,227.55,7.76]
[1759425006326,0.03141166,227.61,227.57,3.9522]
[1759425006532,0.03141166,227.61,227.54,10.62888146]
[1759425006828,0.03141166,227.61,227.55,7.76]
[1759425007030,0.03141166,227.61,227.5,7.76]
[1759425007432,3.98301166,227.61,227.52,3.9531]
[1759425007728,0.03141166,227.61,227.52,3.9531]
[1759425007933,0.03141166,227.61,227.5,11.7134]
[1759425008128,2.86888146,227.6,227.45,7.76]
[1759425008524,3.9527,227.55,227.45,7.76]
[1759425009340,0.03194625,227.52,227.47,3.9539]
[1759425009834,0.03194625,227.52,227.48,7.76]
[1759425010636,0.03194625,227.52,227.48,3.9537]
[1759425010936,0.03194625,227.52,227.49,7.76]
[1759425012038,0.03194625,227.52,227.48,7.76]
[1759425012530,0.03194625,227.52,227.47,2.86888146]
[1759425012735,0.03194625,227.52,227.48,7.76]
[1759425013033,0.03194625,227.52,227.47,2.86888146]
[1759425013034,0.03194625,227.52,227.47,6.82278146]
[1759425013340,0.03194625,227.52,227.48,7.76]
[1759425013538,0.03194625,227.52,227.45,11.7141]
[1759425013933,0.03194625,227.52,227.45,7.76]
[1759425014728,0.03194625,227.52,227.46,3.9541]
[1759425015538,0.03194625,227.52,227.46,11.7141]
[1759425015740,0.03194625,227.52,227.46,7.76]
[1759425016237,0.03194625,227.52,227.38,319.58]
[1759425016238,94.76,227.51,227.42,7.76]
[1759425016733,94.76,227.51,227.37,7.76]
[1759425017036,2.86888146,227.54,227.4,7.76]
[1759425017236,108.88,227.52,227.4,7.76]
[1759425017741,0.03240562,227.46,227.4,11.7152]
[1759425018838,0.03240562,227.46,227.4,7.76]
[1759425019038,0.03240562,227.46,227.33,62.30873881]
[1759425019039,0.03240562,227.46,227.34,7.76]
[1759425019436,0.03240562,227.46,227.37,7.76]
[1759425020133,0.03240562,227.46,227.38,3.9554]
[1759425020432,0.03240562,227.46,227.39,7.76]
[1759425020636,0.03240562,227.46,227.4,7.76]
[1759425021043,0.03240562,227.46,227.42,3.9547]
[1759425021243,0.03240562,227.46,227.4,7.76]
[1759425022540,0.03240562,227.46,227.43,7.76]
[1759425022743,0.03240562,227.46,227.42,3.9548]
[1759425023546,0.03240562,227.46,227.43,3.9545]
[1759425023741,0.03240562,227.46,227.42,61.5204]
[1759425023946,3.9525,227.56,227.47,7.66]
[1759425024147,5.90717989,227.61,227.47,7.66]
[1759425024345,57.1,227.59,227.47,7.66]
[1759425024844,3.9524,227.56,227.47,11.614]
[1759425025140,2.86888146,227.61,227.47,7.66]
[1759425025345,108.92,227.6,227.47,7.66]
[1759425025545,3.9518,227.6,227.51,7.69141105]
[1759425025746,108.92,227.6,227.51,7.69141105]
[1759425026042,3.952,227.59,227.51,7.69141105]
[1759425026445,319.76,227.64,227.51,7.69141105]
[1759425026643,3.9516,227.61,227.51,0.03141105]
[1759425026840,3.9516,227.61,227.52,7.66]
[1759425028048,108.92,227.63,227.52,7.66]
[1759425028446,108.92,227.63,227.52,10.52888146]
[1759425028745,108.92,227.63,227.55,7.66]
[1759425029249,112.8713,227.63,227.55,7.66]
[1759425029443,3.9513,227.63,227.55,7.66]
[1759425029747,6.99640156,227.63,227.55,7.66]
[1759425030052,428.66,227.64,227.58,7.66]
[1759425030245,319.76,227.64,227.58,7.66]
[1759425031344,3.951,227.65,227.58,7.66]
[1759425031843,13.22757862,227.66,227.58,7.66]
[1759425032044,112.8505,227.67,227.58,7.66]
[1759425033148,3.05142795,227.66,227.58,7.66]
[1759425033350,112.8505,227.67,227.58,7.66]
[1759425033551,3.9508,227.66,227.58,7.66]
[1759425033751,108.9,227.67,227.58,7.66]
[1759425033950,3.05179992,227.66,227.58,7.66]
[1759425034249,13.46987573,227.66,227.58,7.49]
[1759425034450,46.96,227.71,227.6,7.49]
[1759425034649,3.05505883,227.7,227.6,7.49]
[1759425035654,7.00505883,227.7,227.6,11.4417]
[1759425035850,7.00505883,227.7,227.63,0.03037242]
[1759425036051,7.00505883,227.7,227.63,7.52037242]
[1759425037344,3.05505883,227.7,227.63,0.03037242]
[1759425038054,20.38708925,227.7,227.63,0.03037242]
[1759425038254,3.05505883,227.69,227.63,0.03037242]
[1759425039752,17.33203042,227.7,227.63,0.03037242]
[1759425040349,13.38193042,227.7,227.63,0.03037242]
[1759425040545,112.8096,227.73,227.64,7.49]
[1759425040751,3.06159992,227.72,227.63,0.03037242]
[1759425041059,3.9503,227.69,227.63,0.03037242]
[1759425043657,3.9505,227.67,227.63,0.03037242]
[1759425043851,12.87413044,227.7,227.63,0.03037242]
[1759425044052,2.86888146,227.72,227.63,0.03037242]
[1759425044248,4.85788949,227.81,227.66,2.86888146]
[1759425044455,53.74915792,227.83,227.67,7.49]
[1759425044654,3.06915792,227.82,227.67,7.49]
[1759425044850,7.01725792,227.82,227.71,11.4398]
[1759425045157,3.06915792,227.82,227.71,7.49]
[1759425045553,3.06915792,227.82,227.74,0.02774441]
[1759425046057,111.98915792,227.82,227.74,0.02774441]
[1759425046257,108.92,227.82,227.74,0.02774441]
[1759425046752,122.01328311,227.82,227.74,0.02774441]
[1759425046954,61.4184,227.8,227.74,0.02774441]
[1759425047155,3.06577149,227.79,227.74,0.02774441]
[1759425047456,3.9491,227.75,227.74,0.02774441]
[1759425047653,3.9491,227.75,227.61,2.86888146]
[1759425047654,111.84888146,227.75,227.61,10.35888146]
[1759425047853,64.30968146,227.72,227.61,7.49]
[1759425048053,3.9506,227.67,227.61,7.49]
[1759425048349,3.9506,227.67,227.59,1.83793008]
[1759425049150,0.03254002,227.65,227.59,1.83793008]
[1759425051355,0.03254002,227.65,227.6,7.49]
[1759425051555,0.03254002,227.65,227.59,1.83793008]
[1759425051859,0.03254002,227.65,227.59,5.78963008]
[1759425052060,0.03254002,227.65,227.6,7.49]
[1759425052255,0.03254002,227.65,227.59,5.78963008]
[1759425052455,0.03254002,227.65,227.6,7.49]
[1759425053357,0.03254002,227.65,227.62,1.83793008]
[1759425053559,0.03254002,227.65,227.63,7.49]
[1759425054062,0.03254002,227.65,227.64,11.441]
[1759425054261,0.03254002,227.65,227.64,11.881]
[1759425054663,55.88,227.75,227.64,11.881]
[1759425054864,59.8291,227.75,227.64,11.441]
[1759425055062,59.8291,227.75,227.66,1.83793008]
[1759425055957,3.9496,227.73,227.66,1.83793008]
[1759425056362,55.88,227.75,227.68,0.02987423]
[1759425056959,55.88,227.75,227.68,1.86780431]
[1759425057560,59.8293,227.75,227.68,1.86780431]
[1759425058670,3.9494,227.74,227.68,0.02987423]
[1759425060572,55.88,227.75,227.68,0.02987423]
[1759425061773,3.9493,227.74,227.68,0.02987423]
[1759425061971,55.88,227.75,227.68,0.02987423]
[1759425062168,1.83793008,227.77,227.69,1.83793008]
[1759425062361,3.9488,227.77,227.69,1.83793008]
[1759425062562,1.83793008,227.8,227.69,7.46]
[1759425062773,82.37793008,227.8,227.72,1.83793008]
[1759425063074,82.37793008,227.8,227.69,1.83793008]
[1759425063571,3.05855092,227.79,227.69,1.83793008]
[1759425063771,3.9491,227.75,227.69,1.83793008]
[1759425064270,3.9491,227.75,227.72,0.03242438]
[1759425064665,1.83793008,227.77,227.72,0.03242438]
[1759425065874,3.9494,227.74,227.72,0.03242438]
[1759425066872,112.809,227.76,227.72,0.03242438]
[1759425067269,3.9495,227.73,227.72,0.03242438]
[1759425067468,61.4369,227.73,227.61,7.46]
[1759425067673,1.83793008,227.7,227.61,7.46]
[1759425067875,108.84,227.69,227.61,7.46]
[1759425068373,108.84,227.75,227.65,7.46]
[1759425068675,1.83793008,227.79,227.68,7.46]
[1759425068872,109.04,227.76,227.68,7.46]
[1759425069067,109.04,227.76,227.72,3.9496]
[1759425069379,3.06971495,227.75,227.72,3.9496]
[1759425069572,3.06971495,227.75,227.7,9.29793008]
[1759425069777,0.02871513,227.74,227.7,9.29793008]
[1759425070073,0.02871513,227.74,227.7,1.83793008]
[1759425070279,0.02871513,227.74,227.73,9.29793008]
[1759425071277,0.02871513,227.74,227.7,1.83793008]
[1759425071477,0.02871513,227.74,227.69,1.83793008]
[1759425072079,0.02871513,227.74,227.71,7.46]
[1759425072978,0.02871513,227.74,227.73,7.46]
[1759425074281,0.02871513,227.74,227.71,9.29793008]
[1759425074682,0.02871513,227.74,227.72,7.46]
[1759425075084,0.02871513,227.74,227.71,1.83793008]
[1759425075282,0.02871513,227.74,227.72,7.46]
[1759425075482,0.02871513,227.74,227.73,7.46]
[1759425076882,0.02871513,227.74,227.71,9.29793008]
[1759425077081,0.02871513,227.74,227.68,1.83793008]
[1759425077482,3.10017284,227.74,227.68,1.83793008]
[1759425077682,0.02871513,227.74,227.68,1.83793008]
[1759425078082,3.10017284,227.74,227.68,1.83793008]
[1759425078283,0.02871513,227.74,227.68,1.83793008]
[1759425078680,3.10017284,227.74,227.68,1.83793008]
[1759425078881,0.02871513,227.74,227.68,1.83793008]
[1759425079280,3.10017284,227.74,227.68,1.83793008]
[1759425079487,0.02871513,227.74,227.69,7.46]
[1759425079686,0.02871513,227.74,227.68,1.83793008]
[1759425079883,0.02871513,227.74,227.69,7.46]
[1759425080085,0.02871513,227.74,227.68,1.83793008]
[1759425080286,0.02871513,227.74,227.7,3.95]
[1759425080479,0.02871513,227.74,227.71,7.46]
[1759425080885,0.02871513,227.74,227.7,3.95]
[1759425081087,0.02871513,227.74,227.71,7.46]
[1759425081286,0.02871513,227.74,227.7,3.95]
[1759425081787,0.02871513,227.74,227.68,5.78823008]
[1759425081988,0.02871513,227.74,227.68,13.24823008]
[1759425082389,0.02871513,227.74,227.68,1.83793008]
[1759425082991,0.02871513,227.74,227.69,7.46]
[1759425083192,0.02871513,227.74,227.72,7.46]
[1759425083492,0.02871513,227.74,227.68,1.83793008]
[1759425083493,0.02871513,227.74,227.71,1.83793008]
[1759425083691,0.02871513,227.74,227.72,7.1]
[1759425083891,0.02871513,227.74,227.71,1.83793008]
[1759425084393,0.02871513,227.74,227.73,11.0495]
[1759425086491,3.0795514,227.8,227.76,3.9489]
[1759425086691,3.0795514,227.81,227.72,7.1]
[1759425086893,3.07922976,227.81,227.72,8.93793008]
[1759425087196,3.9491,227.76,227.67,1.83793008]
[1759425087392,7.02832976,227.76,227.67,1.83793008]
[1759425088295,7.02832976,227.76,227.69,0.03017716]
[1759425089292,7.02848114,227.76,227.69,0.03017716]
[1759425089994,3.9493,227.74,227.69,0.03017716]
[1759425091992,3.9493,227.74,227.69,7.15017716]
[1759425092698,7.02876064,227.76,227.69,7.15017716]
[1759425092899,3.07976064,227.75,227.69,7.15017716]
[1759425093193,3.9495,227.73,227.69,7.15017716]
[1759425093499,7.02963258,227.73,227.69,0.03017716]
[1759425093700,3.9495,227.73,227.69,0.03017716]
[1759425094198,7.02971491,227.73,227.69,0.03017716]
[1759425094392,3.9495,227.73,227.69,7.15017716]
[1759425094789,7.02971491,227.73,227.69,7.15017716]
[1759425094993,3.08021491,227.72,227.69,0.03017716]
[1759425095193,1.83793008,227.73,227.69,0.03017716]
[1759425095398,3.08068542,227.72,227.69,0.03017716]
[1759425095597,1.83793008,227.73,227.69,0.03017716]
[1759425095790,3.0806507,227.72,227.69,0.03017716]
[1759425095990,3.9498,227.72,227.69,0.03017716]
[1759425096192,3.08140543,227.71,227.69,0.03017716]
[1759425096400,3.9498,227.72,227.69,0.03017716]
[1759425096595,3.08111368,227.71,227.69,0.03017716]
[1759425096796,1.83793008,227.73,227.69,0.03017716]
[1759425096998,3.08086837,227.72,227.69,0.03017716]
[1759425097198,3.08086837,227.71,227.69,0.03017716]
[1759425097401,1.83793008,227.73,227.69,0.03017716]
[1759425097703,3.08151864,227.72,227.69,0.03017716]
[1759425098002,3.08151864,227.71,227.69,0.03017716]
[1759425098306,1.83793008,227.73,227.69,0.03017716]
[1759425098503,7.03213436,227.72,227.69,0.03017716]
[1759425098705,1.83793008,227.7,227.69,0.03017716]
[1759425098899,4.92026444,227.7,227.69,0.03017716]
[1759425099295,8.87026444,227.7,227.69,0.03017716]
[1759425099495,1.83793008,227.67,227.59,11.0718]
[1759425099897,3.9508,227.66,227.59,11.0718]
[1759425100900,1.83793008,227.67,227.61,3.9514]
[1759425101100,0.03230687,227.65,227.61,3.9514]
[1759425101301,0.03230687,227.65,227.61,7.12]
[1759425101506,0.03230687,227.65,227.6,1.83793008]
[1759425102098,0.03230687,227.65,227.61,7.12]
[1759425102297,0.03230687,227.65,227.6,1.83793008]
[1759425102708,0.03230687,227.65,227.64,7.12]
[1759425103604,0.03230687,227.65,227.63,3.951]
[1759425103805,0.03230687,227.65,227.63,11.071]
[1759425104108,0.03230687,227.65,227.64,7.12]
[1759425105010,0.03230687,227.65,227.62,7.12]
[1759425105209,0.03230687,227.65,227.61,3.9515]
[1759425105405,0.03230687,227.65,227.63,7.12]
[1759425105910,0.03230687,227.65,227.62,3.9512]
[1759425106310,0.03230687,227.65,227.64,11.071]
[1759425110012,0.03230687,227.65,227.64,11.511]
[1759425110213,3.0829518,227.73,227.67,11.0704]
[1759425110413,3.0829518,227.74,227.67,11.0704]
[1759425110615,3.0829518,227.73,227.68,3.9502]
[1759425110804,3.0829518,227.74,227.68,11.0702]
[1759425111009,3.0829518,227.73,227.68,3.9502]
[1759425111205,3.0829518,227.74,227.68,11.0702]
[1759425111404,3.0829518,227.73,227.69,7.12]
[1759425111710,3.0829518,227.76,227.68,11.0702]
[1759425112012,3.0829518,227.75,227.68,11.09799344]
[1759425112207,3.0829518,227.74,227.68,11.09799344]
[1759425112420,6.8195075,227.77,227.68,11.09799344]
[1759425112709,3.08259955,227.76,227.68,11.09799344]
[1759425112914,3.08259955,227.75,227.68,11.09799344]
[1759425113117,6.8195075,227.77,227.68,7.14779344]
[1759425113118,3.08259955,227.74,227.68,7.14779344]
[1759425113416,3.9491,227.76,227.68,7.14779344]
[1759425113612,3.08293331,227.75,227.68,7.14779344]
[1759425113812,3.08293331,227.74,227.68,7.14779344]
[1759425114115,3.08370798,227.73,227.68,7.14779344]
[1759425114313,3.9491,227.76,227.68,7.14779344]
[1759425114314,3.08370798,227.75,227.68,7.14779344]
[1759425114514,3.08370798,227.74,227.68,7.14779344]
[1759425114715,3.9491,227.76,227.68,7.14779344]
[1759425114914,3.08351747,227.75,227.68,7.14779344]
[1759425115112,3.08351747,227.74,227.69,7.12]
[1759425115307,44.1,227.8,227.69,7.12]
[1759425115508,3.08348581,227.79,227.69,7.12]
[1759425115715,3.08348581,227.78,227.69,7.12]
[1759425115913,3.08348581,227.77,227.69,7.12]
[1759425116113,3.08348581,227.76,227.69,7.12]
[1759425116412,3.08348581,227.79,227.72,7.12]
[1759425116612,15.91583079,227.82,227.72,7.12]
[1759425116613,3.08348581,227.78,227.72,7.12]
[1759425116823,3.08348581,227.81,227.72,7.12]
[1759425117116,3.08453657,227.81,227.73,7.12]
[1759425117310,319.54,227.85,227.78,7.12]
[1759425118117,332.96703777,227.85,227.78,7.12]
[1759425118412,13.42703777,227.85,227.79,3.9483]
[1759425118613,108.8,227.9,227.8,7.12]
[1759425118818,3.08381127,227.89,227.8,7.12]
[1759425119114,3.08381127,227.88,227.8,7.12]
[1759425119424,13.1490304,227.88,227.8,7.12]
[1759425119716,3.08381127,227.89,227.8,7.12]
[1759425119717,108.8,227.9,227.81,3.9481]
[1759425119925,3.08222601,227.89,227.82,7.12]
[1759425120109,3.08222601,227.94,227.84,3.9474]
[1759425120313,3.08222601,227.93,227.85,7.12]
[1759425120510,3.08222601,227.94,227.85,7.12]
[1759425120718,2.8707075,227.95,227.85,7.12]
[1759425120719,3.08222601,227.93,227.85,7.12]
[1759425120920,7.02802601,227.94,227.85,7.12]
[1759425121118,16.52575914,227.95,227.85,7.12]
[1759425121324,3.08222601,227.94,227.87,0.02945693]
[1759425121825,13.44353313,227.95,227.88,7.19]
[1759425122122,3.9455,227.96,227.88,7.19]
[1759425123327,12.86561488,227.96,227.89,7.19]
[1759425123523,319.58,227.98,227.89,7.19]
[1759425124416,319.58,227.98,227.91,7.19]
[1759425124619,108.76,228.01,227.91,7.19]
[1759425125221,3.9448,228.0,227.91,7.19]
[1759425125820,3.9448,228.0,227.94,0.03377662]
[1759425126021,16.90941999,228.0,227.94,0.03377662]
[1759425127520,125.91421658,228.01,227.94,0.03377662]
[1759425128432,17.17421658,228.01,227.94,0.03377662]
[1759425128726,125.91421658,228.01,227.94,0.03377662]
[1759425130732,3.945,227.99,227.94,0.03377662]
[1759425131728,3.945,227.99,227.94,7.22377662]
[1759425132329,121.96961658,228.01,227.94,0.03377662]
[1759425132934,13.22961658,228.01,227.94,0.03377662]
[1759425133132,108.72,228.01,227.94,0.03377662]
[1759425134238,12.95689171,228.02,227.95,7.19]
[1759425134440,108.7,228.03,227.95,7.19]
[1759425135139,108.7,228.03,227.95,11.1357]
[1759425135341,2.8707075,228.07,227.95,11.1357]
[1759425135535,108.7,228.06,227.95,11.1357]
[1759425136434,108.7,228.07,227.98,7.19]
[1759425136630,108.7,228.07,227.98,7.22260925]
[1759425137130,108.7,228.07,227.98,11.16760925]
[1759425138139,121.67376813,228.07,227.98,11.16760925]
[1759425141542,12.97376813,228.07,227.98,11.16760925]
[1759425141742,319.46,228.11,228.01,7.19]
[1759425141743,323.403,228.11,228.01,7.19]
[1759425141943,108.66,228.1,228.01,7.19]
[1759425142339,441.42793712,228.11,228.01,7.19]
[1759425142750,13.30793712,228.11,228.01,7.19]
[1759425142938,108.66,228.12,228.01,7.19]
[1759425143143,108.66,228.12,228.04,7.21868316]
[1759425143640,108.66,228.12,228.04,11.16268316]
[1759425144647,3.9425,228.14,228.04,11.16268316]
[1759425144847,108.64,228.13,228.04,11.16268316]
[1759425145243,12.93356059,228.13,228.04,7.21868316]
[1759425145548,3.942,228.17,228.04,7.21868316]
[1759425145848,3.942,228.17,228.08,7.78]
[1759425146043,108.64,228.16,228.08,7.78]
[1759425146544,2.8707075,228.22,228.09,7.78]
[1759425146850,108.64,228.22,228.1,7.78]
[1759425147248,108.64,228.22,228.14,3.9423]
[1759425147547,108.62,228.23,228.13,7.78]
[1759425147748,112.561,228.23,228.13,7.78]
[1759425148052,108.62,228.23,228.13,7.78]
[1759425148548,121.84606804,228.23,228.16,0.0290102]
[1759425149347,3.9412,228.22,228.16,0.0290102]
[1759425153960,121.84606804,228.23,228.16,0.0290102]
[1759425154145,13.22606804,228.23,228.16,0.0290102]
[1759425154351,2.8707075,228.3,228.19,3.9414]
[1759425154551,111.4507075,228.3,228.2,7.34]
[1759425154751,111.4507075,228.3,228.16,0.0290102]
[1759425154752,3.03900844,228.29,228.16,7.3690102]
[1759425155157,6.97880844,228.29,228.19,3.9415]
[1759425155354,3.9398,228.29,228.19,3.9415]
[1759425155559,3.9398,228.29,228.19,11.2815]
[1759425155752,3.9398,228.29,228.2,0.03342392]
[1759425156158,6.97947228,228.29,228.2,0.03342392]
[1759425156656,3.9401,228.28,228.2,0.03342392]
[1759425157164,3.04043957,228.29,228.2,3.97462392]
[1759425157665,111.60043957,228.29,228.2,0.03342392]
[1759425157958,108.56,228.29,228.22,3.941]
[1759425158155,12.81175168,228.31,228.22,11.281]
[1759425158355,108.56,228.3,228.22,7.34]
[1759425158553,55.76,228.31,228.24,3.9406]
[1759425158753,69.10223725,228.31,228.24,3.9406]
[1759425158964,13.34223725,228.31,228.25,7.34]
[1759425159170,108.56,228.33,228.25,7.34]
[1759425159663,108.56,228.33,228.25,7.36937158]
[1759425159864,112.4991,228.33,228.25,7.36937158]
[1759425160156,319.06,228.37,228.26,3.9402]
[1759425160362,111.58288006,228.36,228.25,7.36937158]
[1759425160665,3.04288006,228.35,228.25,7.36937158]
[1759425160959,16.45629993,228.35,228.25,7.36937158]
[1759425161164,13.41341987,228.35,228.25,7.36937158]
[1759425161366,112.4787,228.36,228.28,3.94]
[1759425162163,3.04409487,228.35,228.28,3.94]
[1759425162765,3.04409487,228.35,228.31,7.34]
[1759425162964,111.56409487,228.36,228.3,7.37010668]
[1759425163158,108.52,228.36,228.3,7.37010668]
[1759425163667,3.04410164,228.35,228.3,7.37010668]
[1759425163868,13.09439894,228.35,228.3,7.37010668]
[1759425164070,108.52,228.36,228.3,7.37010668]
[1759425167469,108.52,228.36,228.3,11.30960668]
[1759425167860,108.48,228.36,228.3,11.30960668]
[1759425168570,121.54756725,228.36,228.3,11.30960668]
[1759425169273,13.06756725,228.36,228.3,11.30960668]
[1759425169473,108.48,228.36,228.3,11.30960668]
[1759425170273,1.82713575,228.35,228.3,11.30960668]
[1759425170566,1.82713575,228.35,228.3,7.37010668]
[1759425171172,1.82713575,228.35,228.3,11.30960668]
[1759425171874,1.82713575,228.35,228.32,3.9393]